[Event "Chessable Masters by chess24-KO"]
[Site "Online"]
[Date "2020.06.24"]
[Round "1.1"]
[White "Nepomniachtchi, Ian"]
[Black "Artemiev, Vladislav"]
[Result "1-0"]
[ECO "B28"]
[WhiteElo "2778"]
[BlackElo "2769"]
[Annotator "ChessBase"]
[PlyCount "117"]
[EventDate "2020.06.20"]
[EventType "k.o."]
[SourceTitle "playchess.com"]
[Source "ChessBase"]
[SourceQuality "1"]
[TimeControl "900+10"]

1. e4 {[%emt 0:00:00]} c5 {[%emt 0:00:00]} 2. Nf3 {[%emt 0:00:00]} a6 {[%emt 0:00:00]} 3. c3 {[%emt 0:00:06]} d5 {[%emt 0:00:00]} 4. exd5 {[%emt 0:00:06]} Qxd5 {[%emt 0:00:00]} 5. d4 {[%emt 0:00:05]} Nf6 {[%emt 0:00:00]} 6. c4 {[%emt 0:01:44]} Qe4+ {[%emt 0:00:07]} 7. Be2 {[%emt 0:03:20]} cxd4 {[%emt 0:00:02]} 8. Qxd4 {[%emt 0:00:55]} Qxd4 {[%emt 0:01:19]} 9. Nxd4 {[%emt 0:00:00]} e5 {[%emt 0:00:02]} 10. Nf3 {[%emt 0:00:08]} Nc6 {[%emt 0:00:17]} 11. Nc3 {[%emt 0:00:06]} e4 {[%emt 0:02:00]} 12. Nd2 {[%emt 0:00:26]} Bf5 {[%emt 0:00:44]} 13. O-O {[%emt 0:00:10]} Nd4 {[%emt 0:01:14]} 14. Bd1 {[%emt 0:00:02]} O-O-O {[%emt 0:00:21]} 15. Nb3 {[%emt 0:00:04]} Be6 {[%emt 0:01:10]} 16. Nxd4 {[%emt 0:00:57]} Rxd4 {[%emt 0:00:02]} 17. b3 {[%emt 0:00:46]} Rd3 {[%emt 0:01:04]} 18. Na4 {[%emt 0:01:32]} b5 {[%emt 0:02:00]} 19. Nb2 {[%emt 0:00:06]} bxc4 {[%emt 0:00:02]} 20. Nxc4 {[%emt 0:02:05]} Bxc4 {[%emt 0:00:10]} 21. bxc4 {[%emt 0:00:00]} Bc5 {[%emt 0:00:06]} 22. Bc2 {[%emt 0:00:16]} Rc3 {[%emt 0:00:21]} 23. Bb3 {[%emt 0:00:01]} Rd3 {[%emt 0:04:17]} 24. Bc2 {[%emt 0:00:25]} Rd7 {[%emt 0:00:23]} 25. h3 {[%emt 0:00:18]} Re8 {[%emt 0:00:32]} 26. Ba4 {[%emt 0:00:15]} Re6 {[%emt 0:01:08]} 27. Bxd7+ {[%emt 0:00:05]} Nxd7 {[%emt 0:00:00]} 28. Be3 {[%emt 0:00:30]} Rc6 {[%emt 0:00:16]} 29. Bxc5 {[%emt 0:00:15]} Nxc5 {[%emt 0:00:03]} 30. f3 {[%emt 0:00:47]} f6 {[%emt 0:00:12]} 31. Rad1 {[%emt 0:00:14]} Kc7 {[%emt 0:00:13]} 32. fxe4 {[%emt 0:00:37]} Nxe4 {[%emt 0:00:01]} 33. Rd4 {[%emt 0:00:01]} Nc5 {[%emt 0:00:16]} 34. Re1 {[%emt 0:00:06]} Ne6 {[%emt 0:00:02]} 35. Rh4 {[%emt 0:01:12]} h6 {[%emt 0:00:05]} 36. Rhe4 {[%emt 0:00:01]} Kd7 {[%emt 0:00:04]} 37. h4 {[%emt 0:00:00]} h5 {[%emt 0:00:58]} 38. Kh2 {[%emt 0:00:17]} g6 {[%emt 0:00:10]} 39. Kg3 {[%emt 0:00:19]} Rd6 {[%emt 0:00:09]} 40. R1e3 {[%emt 0:00:11]} Nd4 {[%emt 0:00:10]} 41. Ra3 {[%emt 0:00:20]} Nf5+ {[%emt 0:00:53]} 42. Kh2 {[%emt 0:00:02]} Rc6 {[%emt 0:00:36]} 43. c5 {[%emt 0:00:05]} Kc7 {[%emt 0:00:10]} 44. Ra5 {[%emt 0:00:13]} Kb7 {[%emt 0:00:17]} 45. Kh3 {[%emt 0:00:04]} Kc7 {[%emt 0:00:03]} 46. Re8 {[%emt 0:00:51]} Kb7 {[%emt 0:00:08]} 47. Rg8 {[%emt 0:00:08]} Ne7 {[%emt 0:00:03]} 48. Rg7 {[%emt 0:00:01]} Re6 {[%emt 0:00:01]} 49. Ra3 {[%emt 0:00:22]} Kc7 {[%emt 0:00:13]} 50. Rb3 {[%emt 0:00:19]} Re1 {[%emt 0:00:41]} 51. Rb6 {[%emt 0:00:29]} Kd8 {[%emt 0:00:01]} 52. Kh2 {[%emt 0:00:05]} Re4 {[%emt 0:00:10]} 53. Rxf6 {[%emt 0:00:17]} Rxh4+ {[%emt 0:00:01]} 54. Kg1 {[%emt 0:00:01]} Re4 {[%emt 0:00:02]} 55. Rxa6 {[%emt 0:00:06]} Re5 {[%emt 0:00:10]} 56. Ra8+ {[%emt 0:00:08]} Kd7 {[%emt 0:00:02]} 57. Ra7+ {[%emt 0:00:01]} Kd8 {[%emt 0:00:09]} 58. c6 {[%emt 0:00:02]} h4 {[%emt 0:00:11]} 59. Rh7 {[%emt 0:00:15]} 1-0